Cogmind - Beta 14 @@@ ROGUE MODE // 2024.09.20 @ 17:53:06 Player: Omega Result: Destroyed by G-34 Mercenary with Small Laser Performance ------------- Evolutions (1) 500 Regions Visited (2) 400 Robots Destroyed (23) 115 Value Destroyed (611) 611 Prototype IDs (1) 20 Alien Tech Used (0) 0 Bonus (0) 0 TOTAL SCORE: 1646 Bonus ------- None Cogmind --------- Core Integrity 0/400 Matter 126/300 Energy 51/265 System Corruption 5% Temperature Cool (12) Movement Rolling (90) Location -9/Materials Parts ------- > --- POWER (1) -------- Improved Ion Engine > --- PROPULSION (3) --- Armored Wheel Armored Wheel Armored Wheel > --- UTILITY (3) ------ Medium Storage Unit Targeting Computer > --- WEAPON (2) ------- (None) > --- INVENTORY (10) --- Armored Wheel Improved Heat Sink Improved Heat Sink Improved Heat Sink Improved Sensor Array Utility Shielding Utility Shielding Utility Shielding Peak State ------------ > --- POWER ------------ Backup Power III > --- PROPULSION ------- Aluminum Leg Aluminum Leg Aluminum Leg > --- UTILITY ---------- Medium Storage Unit Improved Sensor Array Targeting Computer > --- WEAPON ----------- Light Cannon Grenade Launcher > --- INVENTORY -------- Aluminum Leg Aluminum Leg Improved Heat Sink Small Storage Unit Utility Shielding Utility Shielding Utility Shielding Utility Shielding Utility Shielding Medium Laser [Rating: 14] Favorites ----------- Power Light Ion Engine Engine Light Ion Engine Propulsion Aluminum Leg Leg Aluminum Leg Wheel Armored Wheel Utility Medium Storage Unit Device Improved Terrain Scanner Storage Medium Storage Unit Processor Targeting Computer Protection Utility Shielding Weapon Light Assault Rifle Energy Gun Medium Laser Ballistic Gun Light Assault Rifle Ballistic Cannon Light Cannon Launcher Grenade Launcher Build | -11 -10 -9 ------- Run | Yrd Mat Mat Slots Evolved 2 | . . 2 Power . | . . . Propulsion 1 | . . 1 Utility 1 | . . 1 Weapon . | . . . Parts Attached 33 | 7 13 13 Power 4 | 1 1 2 Engine 4 | 1 1 2 Core . | . . . Reactor . | . . . Propulsion 12 | 2 3 7 Treads . | . . . Leg 8 | 2 3 3 Wheel 4 | . . 4 Hover . | . . . Flight . | . . . Utility 6 | 2 2 2 Device 2 | 1 . 1 Storage 2 | 1 1 . Processor 1 | . 1 . Hackware . | . . . Protection 1 | . . 1 Artifact . | . . . Weapon 11 | 2 7 2 Energy Gun 2 | . 1 1 Energy Cannon . | . . . Ballistic Gun 4 | 2 2 . Ballistic Cannon 1 | . 1 . Launcher 4 | . 3 1 Special Weapon . | . . . Impact Weapon . | . . . Slashing Weapon . | . . . Piercing Weapon . | . . . Special Melee Weapon . | . . . Unidentified Prototypes 1 | . . 1 Parts Lost 15 | . 7 8 Power 3 | . 2 1 Propulsion 4 | . 1 3 Utility 2 | . 1 1 Weapon 6 | . 3 3 Highest Loss Streak 8 | . 4 8 To Critical Strikes . | . . . Average Slot Usage (%) 90 | . 91 88 Engine 8 | . 8 9 Leg 26 | . 27 24 Device 4 | . 3 7 Storage 13 | . 14 11 Processor 10 | . 9 11 Energy Gun 1 | . . 2 Ballistic Gun 14 | . 18 . Ballistic Cannon 3 | . 1 8 Launcher 6 | . 5 7 Peak Build Rating 14 | 9 10 14 Average Rating 8 | 5 7 12 On Entrance 6 | . 9 10 Naked Turns . | . . . Heaviest Build 24 | 11 18 24 Greatest Support 36 | 20 20 36 Greatest Overweight (x) 7 | 1 1 7 Average Overweight (x) . | . . . Largest Inventory Capacity 10 | 8 10 10 Average Capacity 9 | 7 9 10 Most Carried 10 | 2 8 10 Average Carried 5 | 1 3 9 Final Capacity 10 | 8 10 10 Final Carried 8 | 2 8 8 Class Distribution -------------------- 100% | Mutant Dominant Class ---------------- Mutant | -10/Materials Mutant | -9/Materials Resources | -11 -10 -9 ----------- Run | Yrd Mat Mat Matter Collected 572 | 233 287 52 Remotely . | . . . Salvage Created 521 | 27 413 81 Parts 39 | 6 26 7 Haulers Intercepted . | . . . Recyclers Shooed 2 | . 2 . Parts Field Recycled . | . . . Retrieved Matter . | . . . Parts Self-Destructed . | . . . Prevented . | . . . Kills | -11 -10 -9 ------- Run | Yrd Mat Mat Combat Hostiles Destroyed 12 | . 9 3 Guns 7 | . 7 . Cannons 4 | . 2 2 AOE 1 | . . 1 Classes Destroyed 7 | 1 4 2 Worker 1 | . . 1 Builder 2 | . 1 1 Tunneler 2 | 2 . . Recycler 1 | . 1 . Watcher 5 | . 3 2 Grunt 11 | . 9 2 Duelist 1 | . . 1 Best Kill Streak 6 | 2 5 6 Combat Bots Only 3 | . 3 2 Max Kills in Single Turn 3 | 1 2 3 Gunslinging . | . . . Exploded 1 | . . 1 Melee . | . . . Uniques/NPCs Destroyed . | . . . Combat | -11 -10 -9 -------- Run | Yrd Mat Mat Hostile Shots Fired 219 | . 102 117 Missed 58 | . 24 34 Damage Taken 2190 | . 967 1223 Core 620 | . 212 408 Absorbed by Shields . | . . . Core Remaining (%) 57 | 100 15 . Volleys Fired 106 | 10 75 21 Largest 2 | 2 2 2 Hottest 85 | 40 70 85 Shots Fired 165 | 20 115 30 Gun 134 | 20 103 11 Cannon 24 | . 11 13 Launcher 7 | . 1 6 Special . | . . . Kinetic 140 | 20 107 13 Thermal 18 | . 7 11 Explosive 7 | . 1 6 Electromagnetic . | . . . Robot Hit Streak 11 | 5 11 5 Robot Miss Streak 3 | 2 3 2 Penetration Max . | . . . Secondary Targets 2 | . 2 . Max Gunslinging Chain 1 | . 1 . Shots Hit Robots 113 | 13 82 18 Core Hits 52 | 3 36 13 Critical Kills . | . . . Critical Parts Destroyed . | . . . Critical Strikes 2 | . 1 1 Burn 1 | . 1 . Blast 1 | . . 1 Melee Attacks . | . . . Impact . | . . . Slashing . | . . . Piercing . | . . . Sneak Attacks . | . . . Combat Hostiles . | . . . Follow-up Attacks . | . . . Damage Inflicted 1664 | 107 932 625 Guns 845 | 107 663 75 Cannons 356 | . 159 197 Explosions 458 | . 106 352 Melee . | . . . Ramming 5 | . 4 1 Kinetic 1038 | 107 734 197 Thermal 163 | . 88 75 Explosive 458 | . 106 352 Electromagnetic . | . . . Impact . | . . . Slashing . | . . . Piercing . | . . . Highest Corruption 5 | . . 5 Average Corruption 5 | . . 5 Corruption Purged . | . . . Corruption Blocked . | . . . Effects 6 | . . 6 Matter Fused 2 | . . 2 Energy Discharges 1 | . . 1 Misfires 1 | . . 1 Weapon Failures 2 | . . 2 Overload Shots . | . . . Overflow Damage 17 | . 2 15 Projectiles 2 | . 2 . Explosions 15 | . . 15 Melee . | . . . Knockbacks 8 | . 3 5 Impact . | . . . Kinetic 8 | . 3 5 Secondary . | . . . Self-Inflicted Damage 37 | . . 37 Shots 1 | . . 1 Rammed 1 | . . 1 Targets Rammed 2 | . 1 1 Kicked 1 | . 1 . Crushed . | . . . Highest Temperature 70 | . 70 54 Average Temperature 22 | . 19 31 Received Heat Transfer 1005 | . 579 426 Siege Activations . | . . . Robots Corrupted . | . . . Combat Hostiles . | . . . Parts Fried . | . . . Impact Corruptions . | . . . Robots Melted . | . . . Combat Hostiles . | . . . Parts Melted 1 | . 1 . Heat Transferred 555 | . 333 222 Parts Sabotaged . | . . . Parts Stolen . | . . . Parts Stripped . | . . . Power Chain Reactions . | . . . Alert | -11 -10 -9 ------- Run | Yrd Mat Mat Peak Influence 192 | 10 116 192 Initial 33 | . 6 33 Average 62 | 2 53 104 Maximum Alert Level . | . . . Low Security (%) 100 | 100 100 100 Level 1 . | . . . Level 2 . | . . . Level 3 . | . . . Level 4 . | . . . Level 5 . | . . . High Security . | . . . Max Security . | . . . Squads Dispatched 4 | . 1 3 Investigation 1 | . . 1 Extermination . | . . . Reinforcement 3 | . 1 2 Assault . | . . . Garrison . | . . . Intercept . | . . . Searches Triggered . | . . . Construction Impeded 1 | . . 1 Haulers Reinforced . | . . . Active Scanning Responses . | . . . Cargo Convoy Interrupts . | . . . Stealth | -11 -10 -9 --------- Run | Yrd Mat Mat Distress Signals 4 | . . 4 Communications Jammed . | . . . Distress Signals . | . . . Times Spotted 30 | . 15 15 Peak Tracking Total 7 | . 6 7 Tactical Retreats . | . . . Traps | -11 -10 -9 ------- Run | Yrd Mat Mat Traps Triggered . | . . . Indirectly . | . . . Trap Hack Attempts . | . . . Triggered . | . . . Disarmed . | . . . Reprogrammed . | . . . Reused . | . . . Traps Extracted . | . . . Installed . | . . . Triggered . | . . . Objects Rigged 4 | . 4 . Machines | -11 -10 -9 ---------- Run | Yrd Mat Mat Machines Disabled 4 | . 2 2 Max in Single Turn 1 | . 1 1 Machines Repaired . | . . . Machines Dismantled . | . . . Machines Sabotaged . | . . . Overloaded Fab Kills . | . . . Hacking | -11 -10 -9 --------- Run | Yrd Mat Mat Machines Accessed 9 | . 6 3 Terminals 7 | . 5 2 Fabricators . | . . . Repair Stations 1 | . 1 . Recycling Units . | . . . Scanalyzers 1 | . . 1 Garrison Access . | . . . Total Hacks 30 | . 14 16 Successful 16 | . 8 8 Failed 14 | . 6 8 Catastrophic . | . . . Database Lockouts . | . . . Manual 15 | . 7 8 Terminals 26 | . 13 13 Fabricators . | . . . Repair Stations 1 | . 1 . Recycling Units . | . . . Scanalyzers 3 | . . 3 Garrison Access . | . . . Terminal Hacks 6 | . 4 2 Emergency Access Points 1 | . . 1 Locate Traps 4 | . 3 1 Recall Investigation 1 | . 1 . Fabricator Hacks . | . . . Repair Station Hacks 1 | . 1 . Refit 1 | . 1 . Recycling Unit Hacks . | . . . Scanalyzer 2 | . . 2 Insert Component 1 | . . 1 Analyze 1 | . . 1 Garrison Access Hacks . | . . . Unauthorized Hacks 7 | . 3 4 Terminals 7 | . 3 4 Track 1 | . . 1 Botnet 4 | . 2 2 Detonate 1 | . 1 . Disrupt 1 | . . 1 Fabricators . | . . . Repair Stations . | . . . Recycling Units . | . . . Scanalyzers . | . . . Garrison Access . | . . . Data Cores Recovered . | . . . Used . | . . . Hacking Detections 9 | . 6 3 Full Trace Events 1 | . . 1 Feedback Events . | . . . Feedback Blocked . | . . . Robot Schematics Acquired . | . . . Robots Built . | . . . Authchips . | . . . Time . | . . . Total Robot Build Rating . | . . . Part Schematics Acquired . | . . . Parts Built . | . . . Authchips . | . . . Time . | . . . Total Part Build Rating . | . . . Parts Repaired . | . . . Time . | . . . Parts Recycled . | . . . Recycled Matter . | . . . Retrieved Matter . | . . . Retrieved Components . | . . . Parts Scanalyzed 1 | . . 1 Part Schematics Acquired . | . . . Parts Damaged . | . . . Bothacking | -11 -10 -9 ------------ Run | Yrd Mat Mat Used RIF Installer . | . . . Robots Hacked . | . . . Non-combat . | . . . Combat . | . . . Robot Hacks Applied . | . . . Relay Couplers Released . | . . . Fabnet Peak Effective % . | . . . Robots Rewired . | . . . Allies Hacked . | . . . Hacks Repelled . | . . . Allies | -11 -10 -9 -------- Run | Yrd Mat Mat Total Allies . | . . . Largest Group . | . . . Highest-Rated Group . | . . . Highest-Rated Ally . | . . . Total Orders . | . . . Ally Attacks . | . . . Total Damage . | . . . Kills . | . . . Allies Corrupted . | . . . Allies Melted . | . . . Intel | -11 -10 -9 ------- Run | Yrd Mat Mat Robot Analysis Total . | . . . Derelict Logs Recovered . | . . . Drone Launches . | . . . Drone Recoveries . | . . . Exploration | -11 -10 -9 ------------- Run | Yrd Mat Mat Turns Passed 1392 | 88 983 321 Spaces Moved 790 | 44 561 185 Core 15 | 6 . 9 Treads . | . . . Legs 749 | 38 561 150 Wheels 26 | . . 26 Hover . | . . . Flight . | . . . Fastest Speed 50 | 50 120 90 Average Speed 123 | 113 121 130 Slowest Speed 400 | 120 190 400 Overloaded Moves . | . . . Propulsion Burnouts . | . . . Robots Hopped . | . . . Cave-ins Triggered . | . . . Exploration Rate (%) 37 | 4 79 29 Regions Visited 2 Branch Regions . Pre-discovered Areas . | . . . Known Exits Taken . | . . . Unknown Exits Taken 2 | 1 1 . Scrap Searched . | . . . Spaces Dug . | . . . Terrain Destroyed 21 | . 1 20 Melee . | . . . Projectile . | . . . AOE 21 | . 1 20 Terrain Rammed . | . . . Walls Destroyed . | . . . Machines Disabled . | . . . Actions | -11 -10 -9 --------- Run | Yrd Mat Mat Total 1058 | 62 762 234 Wait 106 | . 106 . Move 788 | 43 560 185 Hop . | . . . Pick Up 14 | 2 5 7 Fast Attach 18 | 7 5 6 Attach 8 | . 3 5 Detach 2 | . 1 1 Swap 7 | . 5 2 Drop 7 | . 1 6 Fire 106 | 10 75 21 Melee . | . . . Ram 1 | . . 1 Kick 1 | . 1 . Crush . | . . . Escape Stasis . | . . . Rewire . | . . . Trap . | . . . Miscellaneous . | . . . Route ------- -11/Scrapyard -10/Materials (discovered 3 exits: *Mat x3) -9/Materials History --------- Turn | Location | Event 10 | -11/Scrapyard | Discovered new exit (range 15) 89 | -11/Scrapyard | Entered Materials 317 | -10/Materials | Build established: Mutant 484 | -10/Materials | Discovered new exit (range 15) 571 | -10/Materials | Core integrity fell below 50% 609 | -10/Materials | Core integrity fell below 20% 645 | -10/Materials | Lost 4 parts (1p1n2w) 754 | -10/Materials | Discovered new exit (range 15) 944 | -10/Materials | Discovered new exit (range 16) 1072 | -10/Materials | Entered another Materials area 1072 | -9/Materials | Evolved 2 slots: Propulsion x1, Utility x1 1342 | -9/Materials | Core integrity fell below 50% 1365 | -9/Materials | Core integrity fell below 20% 1391 | -9/Materials | Lost 8 parts (1p3n1u3w) 1393 | -9/Materials | Destroyed by G-34 Mercenary with Small Laser Last Messages --------------- K-01 Serf collects debris. Lgt. Cannon destroyed. K-01 Serf collects debris. Med. Laser destroyed. Grenade Launcher destroyed. Faulty Hvy. Ion Engine destroyed. System corrupted: Matter fused (-9). Imp. Sensor Array destroyed. Aluminum Leg destroyed. Acquired Arm. Wheel. Dropped Aluminum Leg. Acquired Arm. Wheel. U-05 Engineer lays Concrete. U-05 Engineer builds a Wall. System corrupted: Matter fused (-10). U-05 Engineer builds a Door. Slammed into O-16 Technician. O-16 Technician sends out distress signal. Acquired Imp. Ion Engine. System corrupted: Energy discharge (-35). Map ----- +----------------------------------------------------+ | | | | | | | | | | | | | | | | | | | ?????????????????????????????????????????????????? | | ?????????????????????????????????????????????????? | | ?????????????????????????????????????????????????? | | ????????????????###?######???????????????????????? | | ????????????????# #???????????????????????? | | ???????????????## """ #???????????????????????? | | ???????????????# """ #???????????????????????? | | ????????????????# """ #???????????????????????? | | ?##############?# #???????????????????????? | | ?# # * #?# **!#???????????????????????? | | ?# """ # #?# *!!#???????????????????????? | | ?# """ # === #?# ! #???????????????????????? | | ?# """ # ! #?# #???????????????????????? | | ?# # = =#?#####+####???????????????????????? | | ?# !!! #### ###+####????????????????? | | ?# !! ##/####T## g #????????????????? | | ## !! # Yg @ g #????????????????? | | # + g +????????????????? | | ^ /Y #????????????????? | | ## +????????????????? | | # ##a ###T####????????????????? | | #####+## """ ##??##???????????????????? | | # === """ #????????????????????????? | | ### "" # === """ #????????????????????????? | | ??# """ =# === ^ #????????????????????????? | | ???# """%*# #????????????????????????? | | ???# "" *%# ^ #????????????????????????? | | #### """% # ""T"" #????????????????????????? | | / # + """"" +????????????????????????? | | # """ %# ??? ?????????????????????????? | | # """ # ???? ??????????????????????????? | | " # """ #####"T"???????????????????????????????? | | " # """ #??????????????????????????????????????? | | " / """ [#??????????????????????????????????????? | | # #??????????????????????????????????????? | | ###########??????????????????????????????????????? | | #?????????????????????????????????????????????? | | #?????????????????????????????????????????????? | | #?????????????????????????????????????????????? | | #?????????????????????????????????????????????? | | #?????????????????????????????????????????????? | +----------------------------------------------------+ Best States ------------- Heat Dissipation 28 Energy Generation 12 Energy Capacity 265 Matter Stores 300 Matter Capacity 300 Sight Range 16 Robot Scan Range 15 Terrain Scan Range 16 Terrain Scan Density 10 Utility Shielding 33 Evasion (%) 55 Targeting Accuracy 5 Item Schematics ----------------- None Robot Schematics ------------------ None Fabricated ------------ Nothing Alien Tech Used ----------------- None Achievements -------------- None Challenges ------------ None Game ------ Seed LatentImpulsePrototype Manual? 0 Play Time 00:20:50 Cumulative 14.8 hours Start 2024.09.20 @ 17:33:03 End 2024.09.20 @ 17:53:06 Sessions 1 Manual Loads 0 Difficulty Rogue Special Mode None Game No. 16 Rogue 16 Adventurer 0 Explorer 0 Win Type - Total 0 Types 0/0/0/0/0/0/0/0/0 Lore% 11 Gallery% 21 Achievement% 18 Wizard Run 0 Options --------- Layout 1 ASCII 0 Keyboard 0 Movement Mouse Keybinds 0 Fullscreen 1 Font 24/Smallcaps Map View 50x35 Zoom Use 0% Tactical HUD 0 Map Filters NONE Filters NONE Steam 1 RUN: 062b6afd-e057-4bc9-8b82-aa23416a1a62